Publisher Label,Publisher URI,"Organisational Unit","Beneficiary Name","Payment Date","Amount","Irrecoverable VAT Amount","Purpose","Proclass Code"
"Wolverhampton City Council","http://opendatacommunities.org/id/metropolitan-district-council/wolverhampton","Pensions Investments","Trainline.com","22/10/2014",142.09,0,"Public transport for training",4112
"Wolverhampton City Council","http://opendatacommunities.org/id/metropolitan-district-council/wolverhampton","Pensions Investments","West Coast Trains","27/10/2014",6.67,0,"Parking fees for training",4112
"Wolverhampton City Council","http://opendatacommunities.org/id/metropolitan-district-council/wolverhampton","Pensions Investments","London Underground","27/10/2014",30,0,"Public transport for training",4112
"Wolverhampton City Council","http://opendatacommunities.org/id/metropolitan-district-council/wolverhampton","Pensions Investments","Trainline.com","29/10/2014",143.82,0,"Public transport for training",4112
"Wolverhampton City Council","http://opendatacommunities.org/id/metropolitan-district-council/wolverhampton","Pensions Investments","West Coast Trains","16/10/2014",6.67,0,"Parking fees for training",4112
"Wolverhampton City Council","http://opendatacommunities.org/id/metropolitan-district-council/wolverhampton","Pensions Investments","Virgintrains.co.uk","03/10/2014",127,0,"Public transport for training",4112
"Wolverhampton City Council","http://opendatacommunities.org/id/metropolitan-district-council/wolverhampton","Pensions Investments","West Coast Trains","08/10/2014",3.83,0,"Subsistence for training",4112
"Wolverhampton City Council","http://opendatacommunities.org/id/metropolitan-district-council/wolverhampton","Pensions Investments","West Coast Trains","08/10/2014",0.8,0,"Subsistence for training",4112
"Wolverhampton City Council","http://opendatacommunities.org/id/metropolitan-district-council/wolverhampton","Pensions Investments","EAT","08/10/2014",5.25,0,"Subsistence for training",5812
"Wolverhampton City Council","http://opendatacommunities.org/id/metropolitan-district-council/wolverhampton","Pensions Investments","West Coast Trains","03/10/2014",13.33,0,"Parking fees for training",4112
"Wolverhampton City Council","http://opendatacommunities.org/id/metropolitan-district-council/wolverhampton","Pensions Investments","Virgintrains.co.uk","14/10/2014",56.25,0,"Public transport for training",4112
"Wolverhampton City Council","http://opendatacommunities.org/id/metropolitan-district-council/wolverhampton","Pensions Investments","Hotels.com","14/10/2014",157.5,0,"Accomodation costs for training",7011
"Wolverhampton City Council","http://opendatacommunities.org/id/metropolitan-district-council/wolverhampton","Pensions Investments","London Underground","14/10/2014",60,0,"Public transport for training",4112
"Wolverhampton City Council","http://opendatacommunities.org/id/metropolitan-district-council/wolverhampton","Pensions Investments","Radisson Blu Edwardian Kenilworth","15/10/2014",4.46,0,"Subsistence for training",7011
"Wolverhampton City Council","http://opendatacommunities.org/id/metropolitan-district-council/wolverhampton","Pensions Investments","Radisson Blu Edwardian Kenilworth","15/10/2014",0.67,0,"Subsistence for training",7011
"Wolverhampton City Council","http://opendatacommunities.org/id/metropolitan-district-council/wolverhampton","Pensions Investments","West Coast Trains","16/10/2014",13.33,0,"Parking fees for training",4112
"Wolverhampton City Council","http://opendatacommunities.org/id/metropolitan-district-council/wolverhampton","Pensions Investments","Virgintrains.co.uk","20/10/2014",-36,0,"Public transport for training",4112
"Wolverhampton City Council","http://opendatacommunities.org/id/metropolitan-district-council/wolverhampton","Pensions Investments","Pumpkin Caf�","09/10/2014",2.46,0,"Subsistence for training",5812
"Wolverhampton City Council","http://opendatacommunities.org/id/metropolitan-district-council/wolverhampton","Pensions Investments","Ritazza Food Court","09/10/2014",2.4,0,"Subsistence for training",5812
"Wolverhampton City Council","http://opendatacommunities.org/id/metropolitan-district-council/wolverhampton","Pensions Investments","Ritazza Food Court","09/10/2014",2.49,0,"Subsistence for training",5812
"Wolverhampton City Council","http://opendatacommunities.org/id/metropolitan-district-council/wolverhampton","Pensions Investments","West Coast Trains","09/10/2014",6.67,0,"Parking fees for training",4112
"Wolverhampton City Council","http://opendatacommunities.org/id/metropolitan-district-council/wolverhampton","Pensions Governance","Talk Talk Business","20/10/2014",178.2,0,"Computing - internet for office use",4816
"Wolverhampton City Council","http://opendatacommunities.org/id/metropolitan-district-council/wolverhampton","Pensions Governance","Tesco","23/10/2014",10.5,0,"Subsistence for training",5411
"Wolverhampton City Council","http://opendatacommunities.org/id/metropolitan-district-council/wolverhampton","Pensions Governance","Birmingham Airport","27/10/2014",6.5,0,"Parking fees for training",4582
"Wolverhampton City Council","http://opendatacommunities.org/id/metropolitan-district-council/wolverhampton","Pensions Governance","Birmingham Airport","27/10/2014",0.2,0,"Parking fees for training",4582
"Wolverhampton City Council","http://opendatacommunities.org/id/metropolitan-district-council/wolverhampton","Pensions Governance","West Coast Trains","27/10/2014",126.7,0,"Public transport for training",4112
"Wolverhampton City Council","http://opendatacommunities.org/id/metropolitan-district-council/wolverhampton","Pensions Governance","ISSUU Publishing","27/10/2014",12.16,0,"Computing - internet for office use",2741
"Wolverhampton City Council","http://opendatacommunities.org/id/metropolitan-district-council/wolverhampton","Pensions Governance","Tesco","28/10/2014",8.85,0,"Subsistence for training",5411
"Wolverhampton City Council","http://opendatacommunities.org/id/metropolitan-district-council/wolverhampton","Pensions Governance","Ryman","28/10/2014",24.98,0,"Stationary for office use",5943
"Wolverhampton City Council","http://opendatacommunities.org/id/metropolitan-district-council/wolverhampton","Pensions Operations","Amazon","29/10/2014",10.01,0,"Computing - purchase of hardware for office use",5399
"Wolverhampton City Council","http://opendatacommunities.org/id/metropolitan-district-council/wolverhampton","Pensions Operations","Amazon","29/10/2014",8.17,0,"Computing - purchase of hardware for office use",5399
"Wolverhampton City Council","http://opendatacommunities.org/id/metropolitan-district-council/wolverhampton","Pensions Governance","West Coast Trains","31/10/2014",284.2,0,"Public transport for training",4112
"Wolverhampton City Council","http://opendatacommunities.org/id/metropolitan-district-council/wolverhampton","Pensions Executive","Jurys Inn","16/10/2014",3.75,0,"Subsistence for training",7011
"Wolverhampton City Council","http://opendatacommunities.org/id/metropolitan-district-council/wolverhampton","Pensions Executive","West Coast Trains","22/10/2014",2.28,0,"Subsistence for training",4112
"Wolverhampton City Council","http://opendatacommunities.org/id/metropolitan-district-council/wolverhampton","Pensions Executive","West Coast Trains","22/10/2014",2.71,0,"Subsistence for training",4112
"Wolverhampton City Council","http://opendatacommunities.org/id/metropolitan-district-council/wolverhampton","Pensions Executive","Uppercrust Barrierline","22/10/2014",1.25,0,"Subsistence for training",5812
"Wolverhampton City Council","http://opendatacommunities.org/id/metropolitan-district-council/wolverhampton","Pensions Executive","Uppercrust Barrierline","22/10/2014",3.99,0,"Subsistence for training",5812
"Wolverhampton City Council","http://opendatacommunities.org/id/metropolitan-district-council/wolverhampton","Pensions Executive","Mercure Edinburgh","27/10/2014",30,0,"Subsistence for training",7011
"Wolverhampton City Council","http://opendatacommunities.org/id/metropolitan-district-council/wolverhampton","Pensions Executive","Central Taxis","28/10/2014",10.18,0,"Public transport for training",4121
"Wolverhampton City Council","http://opendatacommunities.org/id/metropolitan-district-council/wolverhampton","Pensions Executive","Central Taxis","28/10/2014",9.61,0,"Public transport for training",4121
"Wolverhampton City Council","http://opendatacommunities.org/id/metropolitan-district-council/wolverhampton","Pensions Executive","Central Taxis","28/10/2014",7.77,0,"Public transport for training",4121
"Wolverhampton City Council","http://opendatacommunities.org/id/metropolitan-district-council/wolverhampton","Pensions Executive","Central Taxis","29/10/2014",7.87,0,"Public transport for training",4121
"Wolverhampton City Council","http://opendatacommunities.org/id/metropolitan-district-council/wolverhampton","Pensions Investments","Virgintrains.co.uk","13/10/2014",43.65,0,"Public transport for training",4112
"Wolverhampton City Council","http://opendatacommunities.org/id/metropolitan-district-council/wolverhampton","Pensions Investments","London Underground","16/10/2014",20,0,"Public transport for training",4112
"Wolverhampton City Council","http://opendatacommunities.org/id/metropolitan-district-council/wolverhampton","Pensions Investments","Virgintrains.co.uk","20/10/2014",52.3,0,"Public transport for training",4112
"Wolverhampton City Council","http://opendatacommunities.org/id/metropolitan-district-council/wolverhampton","Pensions Investments","Central Taxis","29/10/2014",9.08,0,"Public transport for training",4121
"Wolverhampton City Council","http://opendatacommunities.org/id/metropolitan-district-council/wolverhampton","Pensions Investments","Virgintrains.co.uk","30/10/2014",46.15,0,"Public transport for training",4112
"Wolverhampton City Council","http://opendatacommunities.org/id/metropolitan-district-council/wolverhampton","Pensions Investments","Church Street Hotel","07/10/2014",75,0,"Accomodation costs for training",7011
"Wolverhampton City Council","http://opendatacommunities.org/id/metropolitan-district-council/wolverhampton","Pensions Investments","Angels and Gypsies","08/10/2014",5,0,"Subsistence for training",5812
"Wolverhampton City Council","http://opendatacommunities.org/id/metropolitan-district-council/wolverhampton","Pensions Investments","Trainline.com","14/10/2014",54.88,0,"Public transport for training",4112
"Wolverhampton City Council","http://opendatacommunities.org/id/metropolitan-district-council/wolverhampton","Pensions Investments","Qbic Hotel London City","14/10/2014",132.5,0,"Accomodation costs for training",7011
"Wolverhampton City Council","http://opendatacommunities.org/id/metropolitan-district-council/wolverhampton","Pensions Investments","Tayyabs","21/10/2014",14.6,0,"Subsistence for training",5812
"Wolverhampton City Council","http://opendatacommunities.org/id/metropolitan-district-council/wolverhampton","Pensions Investments","London Underground","21/10/2014",8.9,0,"Public transport for training",4112
"Wolverhampton City Council","http://opendatacommunities.org/id/metropolitan-district-council/wolverhampton","Pensions Investments","Poppies Diner","21/10/2014",6.5,0,"Subsistence for training",5812
"Wolverhampton City Council","http://opendatacommunities.org/id/metropolitan-district-council/wolverhampton","Pensions Investments","London Underground","22/10/2014",8.9,0,"Public transport for training",4112
"Wolverhampton City Council","http://opendatacommunities.org/id/metropolitan-district-council/wolverhampton","Pensions Investments","Trainline.com","28/10/2014",187.07,0,"Public transport for training",4112
"Wolverhampton City Council","http://opendatacommunities.org/id/metropolitan-district-council/wolverhampton","Pensions Investments","Hamilton's Caf�","29/10/2014",5.95,0,"Subsistence for training",5812
"Wolverhampton City Council","http://opendatacommunities.org/id/metropolitan-district-council/wolverhampton","Pensions Investments","Sodo Pizza Caf�","29/10/2014",16.5,0,"Subsistence for training",5812
"Wolverhampton City Council","http://opendatacommunities.org/id/metropolitan-district-council/wolverhampton","Pensions Governance","Office Depot","09/10/2014",181.06,0,"Stationary for office use",5943
"Wolverhampton City Council","http://opendatacommunities.org/id/metropolitan-district-council/wolverhampton","Pensions Executive","Virgintrains.co.uk","10/10/2014",9,0,"Public transport for training",4112
"Wolverhampton City Council","http://opendatacommunities.org/id/metropolitan-district-council/wolverhampton","Pensions Executive","Virgintrains.co.uk","10/10/2014",30.7,0,"Public transport for training",4112
"Wolverhampton City Council","http://opendatacommunities.org/id/metropolitan-district-council/wolverhampton","Pensions Executive","Virgintrains.co.uk","13/10/2014",30.7,0,"Public transport for training",4112
"Wolverhampton City Council","http://opendatacommunities.org/id/metropolitan-district-council/wolverhampton","Pensions Investments","Travelodge","14/10/2014",77.75,0,"Accomodation costs for conference",7011
"Wolverhampton City Council","http://opendatacommunities.org/id/metropolitan-district-council/wolverhampton","Pensions Investments","Travelodge","14/10/2014",1.95,0,"Accomodation costs for conference",7011
"Wolverhampton City Council","http://opendatacommunities.org/id/metropolitan-district-council/wolverhampton","Pensions Financial Services","Novotel Hotels","16/10/2014",107.38,0,"Subsistence for training",7011
"Wolverhampton City Council","http://opendatacommunities.org/id/metropolitan-district-council/wolverhampton","Pensions Executive","Virgintrains.co.uk","20/10/2014",173,0,"Public transport for training",4112
"Wolverhampton City Council","http://opendatacommunities.org/id/metropolitan-district-council/wolverhampton","Pensions Executive","Virgintrains.co.uk","21/10/2014",-20.7,0,"Public transport for training",4112
"Wolverhampton City Council","http://opendatacommunities.org/id/metropolitan-district-council/wolverhampton","Pensions Governance","Office Depot","24/10/2014",140.96,0,"Stationary for office use",5943
"Wolverhampton City Council","http://opendatacommunities.org/id/metropolitan-district-council/wolverhampton","Pensions Operations","Virgintrains.co.uk","24/10/2014",204,0,"Public transport for training",4112
"Wolverhampton City Council","http://opendatacommunities.org/id/metropolitan-district-council/wolverhampton","Pensions Investments","Office Depot","28/10/2014",12.32,0,"Stationary for office use",5943
"Wolverhampton City Council","http://opendatacommunities.org/id/metropolitan-district-council/wolverhampton","Pensions Financial Services","Office Depot","28/10/2014",9.37,0,"Stationary for office use",5943
"Wolverhampton City Council","http://opendatacommunities.org/id/metropolitan-district-council/wolverhampton","Pensions Operations","Staffordshire County Council","29/10/2014",10,0,"Copy of paperwork for payroll",9399
"Wolverhampton City Council","http://opendatacommunities.org/id/metropolitan-district-council/wolverhampton","Pensions Operations","Dudley MBC","29/10/2014",10.12,0,"Copy of paperwork for payroll",9399
"Wolverhampton City Council","http://opendatacommunities.org/id/metropolitan-district-council/wolverhampton","Pensions Governance","Office Depot","29/10/2014",-2.57,0,"Stationary for office use",5943
"Wolverhampton City Council","http://opendatacommunities.org/id/metropolitan-district-council/wolverhampton","Pensions Operations","GRO HM Passport Office","30/10/2014",37,0,"Copy of paperwork for payroll",9399
"Wolverhampton City Council","http://opendatacommunities.org/id/metropolitan-district-council/wolverhampton","Pensions Operations","Birmingham City Council","30/10/2014",22,0,"Copy of paperwork for payroll",9399
"Wolverhampton City Council","http://opendatacommunities.org/id/metropolitan-district-council/wolverhampton","Pensions Operations","GRO HM Passport Office","31/10/2014",9.25,0,"Copy of paperwork for payroll",9399
"Wolverhampton City Council","http://opendatacommunities.org/id/metropolitan-district-council/wolverhampton","Pensions Operations","Ritazza Food Court","06/10/2014",4.8,0,"Subsistence for training",5812
"Wolverhampton City Council","http://opendatacommunities.org/id/metropolitan-district-council/wolverhampton","Pensions Governance","Central Taxis","27/10/2014",4.3,0,"Public transport for training",4121
"Wolverhampton City Council","http://opendatacommunities.org/id/metropolitan-district-council/wolverhampton","Pensions Governance","Costa Coffee","27/10/2014",5.5,0,"Subsistence for training",5813
"Wolverhampton City Council","http://opendatacommunities.org/id/metropolitan-district-council/wolverhampton","Pensions Governance","Mercure Edinburgh","27/10/2014",4.7,0,"Subsistence for training",7011
"Wolverhampton City Council","http://opendatacommunities.org/id/metropolitan-district-council/wolverhampton","Pensions Governance","Mercure Edinburgh","27/10/2014",9.4,0,"Subsistence for training",7011
"Wolverhampton City Council","http://opendatacommunities.org/id/metropolitan-district-council/wolverhampton","Pensions Governance","Central Taxis","28/10/2014",8.4,0,"Public transport for training",4121
"Wolverhampton City Council","http://opendatacommunities.org/id/metropolitan-district-council/wolverhampton","Pensions Governance","The Real Mary King's Close","28/10/2014",5,0,"Services - professional fees for Trustee Training",5947
"Wolverhampton City Council","http://opendatacommunities.org/id/metropolitan-district-council/wolverhampton","Pensions Governance","Central Taxis","29/10/2014",8.35,0,"Public transport for training",4121
"Wolverhampton City Council","http://opendatacommunities.org/id/metropolitan-district-council/wolverhampton","Pensions Governance","Caffe Nero","29/10/2014",9.96,0,"Subsistence for training",5813
"Wolverhampton City Council","http://opendatacommunities.org/id/metropolitan-district-council/wolverhampton","Pensions Governance","Trainline.com","31/10/2014",273.87,0,"Public transport for training",4112
